Cogmind - Beta 13 @@@ ROGUE MODE // 2024.04.03 @ 14:11:12 Player: Gary8 Result: Destroyed by G-34 Mercenary with Small Laser Performance ------------- Evolutions (0) 0 Regions Visited (1) 200 Robots Destroyed (4) 20 Value Destroyed (149) 149 Prototype IDs (0) 0 Alien Tech Used (0) 0 Bonus (0) 0 TOTAL SCORE: 369 Bonus ------- None Cogmind --------- Core Integrity 0/250 Matter 274/300 Energy 90/100 System Corruption 0% Temperature Warm (165) Movement Core (1350) Ox26 Location -10/Materials Parts ------- > --- POWER (1) -------- (None) > --- PROPULSION (2) --- (None) > --- UTILITY (2) ------ Huge Storage Unit > --- WEAPON (2) ------- (None) > --- INVENTORY (25) --- Light Cannon Grenade Launcher Peak State ------------ > --- POWER ------------ Light Ion Engine > --- PROPULSION ------- Wheel Wheel > --- UTILITY ---------- Huge Storage Unit > --- WEAPON ----------- Medium Laser Light Assault Rifle > --- INVENTORY -------- Small Laser Grenade Launcher [Rating: 6] Favorites ----------- Power Light Ion Engine Engine Light Ion Engine Propulsion Wheel Wheel Wheel Utility Huge Storage Unit Storage Huge Storage Unit Weapon Light Assault Rifle Energy Gun Medium Laser Ballistic Gun Light Assault Rifle Ballistic Cannon Light Cannon Build | -11 -10 ------- Run | Yrd Mat Slots Evolved . | . . Power . | . . Propulsion . | . . Utility . | . . Weapon . | . . Parts Attached 8 | 5 3 Power 1 | 1 . Engine 1 | 1 . Core . | . . Reactor . | . . Propulsion 2 | 2 . Treads . | . . Leg . | . . Wheel 2 | 2 . Hover . | . . Flight . | . . Utility 1 | . 1 Device . | . . Storage 1 | . 1 Processor . | . . Hackware . | . . Protection . | . . Artifact . | . . Weapon 4 | 2 2 Energy Gun 2 | 1 1 Energy Cannon . | . . Ballistic Gun 1 | 1 . Ballistic Cannon 1 | . 1 Launcher . | . . Special Weapon . | . . Impact Weapon . | . . Slashing Weapon . | . . Piercing Weapon . | . . Special Melee Weapon . | . . Unidentified Prototypes . | . . Parts Lost 7 | . 7 Power 1 | . 1 Propulsion 2 | . 2 Utility . | . . Weapon 4 | . 4 Highest Loss Streak 7 | . 7 To Critical Strikes . | . . Average Slot Usage (%) 69 | . 69 Engine 9 | . 9 Wheel 24 | . 24 Storage 10 | . 10 Energy Gun 10 | . 10 Ballistic Gun 12 | . 12 Naked Turns . | . . Heaviest Build 86 | 6 86 Greatest Support 20 | 20 20 Greatest Overweight (x) 26 | . 26 Average Overweight (x) 1 | . 2 Largest Inventory Capacity 25 | 5 25 Average Capacity 15 | 5 19 Most Carried 4 | 3 4 Average Carried 2 | . 3 Final Capacity 25 | 5 25 Final Carried 2 | 1 2 Class Distribution -------------------- 100% | Mutant Dominant Class ---------------- Mutant | -10/Materials Resources | -11 -10 ----------- Run | Yrd Mat Matter Collected 268 | 254 14 Remotely . | . . Salvage Created 156 | 43 113 Parts 4 | . 4 Haulers Intercepted . | . . Recyclers Shooed . | . . Parts Field Recycled . | . . Retrieved Matter . | . . Parts Self-Destructed . | . . Prevented . | . . Kills | -11 -10 ------- Run | Yrd Mat Combat Hostiles Destroyed 4 | 1 3 Guns 3 | 1 2 Cannons 1 | . 1 Classes Destroyed 1 | 1 . Grunt 4 | 1 3 Best Kill Streak 2 | 1 2 Combat Bots Only 2 | 1 2 Max Kills in Single Turn 1 | 1 1 Gunslinging . | . . Exploded . | . . Melee . | . . Uniques/NPCs Destroyed . | . . Combat | -11 -10 -------- Run | Yrd Mat Hostile Shots Fired 87 | 4 83 Missed 15 | 1 14 Damage Taken 894 | 34 860 Core 258 | . 258 Absorbed by Shields . | . . Core Remaining (%) 100 | 100 . Volleys Fired 29 | 4 25 Largest 2 | 2 2 Hottest 75 | 70 75 Shots Fired 47 | 8 39 Gun 43 | 8 35 Cannon 4 | . 4 Launcher . | . . Special . | . . Kinetic 29 | 4 25 Thermal 18 | 4 14 Explosive . | . . Electromagnetic . | . . Robot Hit Streak 5 | 1 5 Robot Miss Streak 3 | 2 3 Penetration Max . | . . Secondary Targets . | . . Shots Hit Robots 25 | 3 22 Core Hits 11 | 2 9 Critical Kills . | . . Critical Parts Destroyed . | . . Critical Strikes . | . . Melee Attacks . | . . Impact . | . . Slashing . | . . Piercing . | . . Sneak Attacks . | . . Combat Hostiles . | . . Follow-up Attacks . | . . Damage Inflicted 317 | 34 283 Guns 267 | 34 233 Cannons 50 | . 50 Explosions . | . . Melee . | . . Ramming . | . . Kinetic 161 | 9 152 Thermal 156 | 25 131 Explosive . | . . Electromagnetic . | . . Impact . | . . Slashing . | . . Piercing . | . . Highest Corruption . | . . Average Corruption . | . . Corruption Purged . | . . Corruption Blocked . | . . Overload Shots . | . . Overflow Damage . | . . Projectiles . | . . Explosions . | . . Melee . | . . Knockbacks 1 | . 1 Impact . | . . Kinetic 1 | . 1 Secondary . | . . Self-Inflicted Damage . | . . Shots . | . . Rammed . | . . Targets Rammed . | . . Kicked . | . . Crushed . | . . Highest Temperature 199 | 98 199 Average Temperature 100 | 60 111 Received Heat Transfer 495 | 18 477 Siege Activations . | . . Robots Corrupted . | . . Combat Hostiles . | . . Parts Fried . | . . Impact Corruptions . | . . Robots Melted . | . . Combat Hostiles . | . . Parts Melted 3 | . 3 Heat Transferred 445 | 74 371 Parts Sabotaged . | . . Parts Stolen . | . . Parts Stripped . | . . Power Chain Reactions . | . . Alert | -11 -10 ------- Run | Yrd Mat Peak Influence 58 | 20 58 Initial 13 | . 13 Average 15 | 4 20 Maximum Alert Level . | . . Low Security (%) 100 | 100 100 Level 1 . | . . Level 2 . | . . Level 3 . | . . Level 4 . | . . Level 5 . | . . High Security . | . . Max Security . | . . Squads Dispatched 1 | . 1 Investigation 1 | . 1 Extermination . | . . Reinforcement . | . . Assault . | . . Garrison . | . . Intercept . | . . Searches Triggered . | . . Construction Impeded . | . . Haulers Reinforced . | . . Active Scanning Responses . | . . Cargo Convoy Interrupts . | . . Stealth | -11 -10 --------- Run | Yrd Mat Distress Signals . | . . Communications Jammed . | . . Distress Signals . | . . Times Spotted 8 | 1 7 Peak Tracking Total 5 | 1 5 Tactical Retreats . | . . Traps | -11 -10 ------- Run | Yrd Mat Traps Triggered 1 | . 1 Indirectly . | . . Trap Hack Attempts . | . . Triggered . | . . Disarmed . | . . Reprogrammed . | . . Reused . | . . Traps Extracted . | . . Installed . | . . Triggered . | . . Machines | -11 -10 ---------- Run | Yrd Mat Machines Disabled . | . . Max in Single Turn . | . . Machines Repaired . | . . Machines Dismantled . | . . Machines Sabotaged . | . . Overloaded Fab Kills . | . . Hacking | -11 -10 --------- Run | Yrd Mat Machines Accessed . | . . Terminals . | . . Fabricators . | . . Repair Stations . | . . Recycling Units . | . . Scanalyzers . | . . Garrison Access . | . . Total Hacks . | . . Successful . | . . Failed . | . . Catastrophic . | . . Database Lockouts . | . . Manual . | . . Terminals . | . . Fabricators . | . . Repair Stations . | . . Recycling Units . | . . Scanalyzers . | . . Garrison Access . | . . Terminal Hacks . | . . Fabricator Hacks . | . . Repair Station Hacks . | . . Recycling Unit Hacks . | . . Scanalyzer . | . . Garrison Access Hacks . | . . Unauthorized Hacks . | . . Terminals . | . . Fabricators . | . . Repair Stations . | . . Recycling Units . | . . Scanalyzers . | . . Garrison Access . | . . Data Cores Recovered . | . . Used . | . . Hacking Detections . | . . Full Trace Events . | . . Feedback Events . | . . Feedback Blocked . | . . Robot Schematics Acquired . | . . Robots Built . | . . Authchips . | . . Time . | . . Total Robot Build Rating . | . . Part Schematics Acquired . | . . Parts Built . | . . Authchips . | . . Time . | . . Total Part Build Rating . | . . Parts Repaired . | . . Time . | . . Parts Recycled . | . . Recycled Matter . | . . Retrieved Matter . | . . Retrieved Components . | . . Parts Scanalyzed . | . . Part Schematics Acquired . | . . Parts Damaged . | . . Bothacking | -11 -10 ------------ Run | Yrd Mat Used RIF Installer . | . . Robots Hacked . | . . Non-combat . | . . Combat . | . . Robot Hacks Applied . | . . Relay Couplers Released . | . . Fabnet Peak Effective % . | . . Robots Rewired . | . . Allies Hacked . | . . Hacks Repelled . | . . Allies | -11 -10 -------- Run | Yrd Mat Total Allies . | . . Largest Group . | . . Highest-Rated Group . | . . Highest-Rated Ally . | . . Total Orders . | . . Ally Attacks . | . . Total Damage . | . . Kills . | . . Allies Corrupted . | . . Allies Melted . | . . Intel | -11 -10 ------- Run | Yrd Mat Robot Analysis Total . | . . Derelict Logs Recovered . | . . Drone Launches . | . . Drone Recoveries . | . . Exploration | -11 -10 ------------- Run | Yrd Mat Turns Passed 326 | 92 234 Spaces Moved 238 | 96 142 Core 25 | 24 1 Treads . | . . Legs . | . . Wheels 213 | 72 141 Hover . | . . Flight . | . . Fastest Speed 50 | 50 80 Average Speed 99 | 72 117 Slowest Speed 1350 | 80 1350 Overloaded Moves . | . . Propulsion Burnouts . | . . Robots Hopped . | . . Cave-ins Triggered . | . . Exploration Rate (%) 16 | 6 26 Regions Visited 1 Branch Regions . Pre-discovered Areas . | . . Known Exits Taken . | . . Unknown Exits Taken 1 | 1 . Scrap Searched . | . . Spaces Dug . | . . Terrain Destroyed . | . . Melee . | . . Projectile . | . . AOE . | . . Terrain Rammed . | . . Walls Destroyed . | . . Machines Disabled . | . . Actions | -11 -10 --------- Run | Yrd Mat Total 284 | 110 174 Wait . | . . Move 237 | 95 142 Hop . | . . Pick Up 10 | 6 4 Fast Attach . | . . Attach 8 | 5 3 Detach . | . . Swap . | . . Drop . | . . Fire 29 | 4 25 Melee . | . . Ram . | . . Kick . | . . Crush . | . . Escape Stasis . | . . Rewire . | . . Trap . | . . Miscellaneous . | . . Route ------- -11/Scrapyard -10/Materials (discovered 1 exit: [*Min]) History --------- Turn | Location | Event 2 | -11/Scrapyard | Met Revision 17 59 | -11/Scrapyard | Discovered new exit (range 8) 93 | -11/Scrapyard | Entered Materials 229 | -10/Materials | Discovered new exit (range 15) 309 | -10/Materials | Build established: Mutant 309 | -10/Materials | Core integrity fell below 50% 319 | -10/Materials | Core integrity fell below 20% 327 | -10/Materials | Destroyed by G-34 Mercenary with Small Laser Last Messages --------------- K-01 Serf cleans the Neutrino Reactor. Aluminum Leg melted. G-34 Mercenary destroyed. Acquired 14 matter. K-01 Serf cleans the Neutrino Reactor. Wheel destroyed. K-01 Serf cleans the Neutrino Reactor. Many features can be toggled or tweaked. Press ESC then '4' to open the options menu. R-06 Scavenger collects Heat Sink. Lgt. Assault Rifle destroyed. You may prefer to play using a different font style. Try some of the others via the option menu's second option. K-01 Serf collects debris. G-34 Mercenary knocked back. Aluminum Leg melted. G-34 Mercenary destroyed. Lgt. Cannon destroyed. Sml. Laser destroyed. Map ----- +----------------------------------------------------+ | | | | | | | ???????????????????????????????????????? | | ???????????????????????????????????????? | | ???????????????????????????????????????? | | ???????????????????????????????????????? | | #??????????????????????????????????????? | | #####??????????????????????????????????? | | # #??????????????????????????????????? | | # #???????????????????"""????????????? | | # #??????????????????"!!!"???????????? | | + #????????????????#"" ""??????????? | | # #????????????????# ??????????? | | # #????????????????# < ??????????? | | # #????????????????? ???????????? | | # #????????????????? ???????????? | | # #?????????????????? ???????????? | | # #??????????????????# #???????????? | | # #??????????????????# #???????????? | | # #??????????????????# ##########??? | | # #??????????????????# ## ??? | | # #####?????????????## % ## """ ??? | | # !!#???########+## % # """ #?? | | # !!#???# k =g# """ #?? | | # !!#???# g @%%+ #?? | | # !!#???# g %[# ] " #?? | | # ||#???# ####### [ # T #?? | | # ||#???# #?????###g### ! = " #?? | | # #####???# #???????# #?# #?? | | # #???????# #########+#?###+######?? | | #???????# # ]]! #????????????? | | #???????# # !! """ #????????????? | | ######### # !! """ #????????????? | | # # """ #????????????? | | # / "" #????????????? | | # # "Y ! #????????????? | | ##+##### ### # "" #????????????? | | # #?# # ! #????????????? | | ""# #?# ###########????????????? | | Y"# #?# ####??????????????????????? | | ""# #?# #?????????????????????????? | | # #?# #?????????????????????????? | | """ # #?# #?????????????????????????? | | """ # ??# ??????????????????????????? | | """ # ??# ??????????????????????????? | | # ??# ??????????????????????????? | | ######## ??#+??????????????????????????? | | ???????? ??????????????????????????????? | | ???????? ??????????????????????????????? | +----------------------------------------------------+ Best States ------------- Heat Dissipation 25 Energy Generation 10 Energy Capacity 125 Matter Stores 300 Matter Capacity 300 Sight Range 16 Terrain Scan Density 10 Evasion (%) 50 Item Schematics ----------------- None Robot Schematics ------------------ None Fabricated ------------ Nothing Alien Tech Used ----------------- None Achievements -------------- None Challenges ------------ None Game ------ Seed OmegaCloakingRefractor Manual? 0 Play Time 00:04:21 Cumulative 1.1 hours Start 2024.04.03 @ 14:08:24 End 2024.04.03 @ 14:11:12 Sessions 1 Manual Loads 0 Difficulty Rogue Special Mode None Game No. 4 Rogue 4 Adventurer 0 Explorer 0 Win Type - Total 0 Types 0/0/0/0/0/0/0/0/0 Lore% 1 Gallery% 4 Achievement% 4 Wizard Run 0 Options --------- Layout 1 ASCII 0 Keyboard 1 Movement Arrows Keybinds 0 Fullscreen 1 Font 24/Smallcaps Map View 50x35 Zoom Use 2% Tactical HUD 0 Map Filters NONE Filters NONE Steam 1 RUN: 3ac44716-d0e6-44e2-be86-5eeaaa9d9aa1